fUSD/lending_fUSD_20240220
["ID","MTS","AMOUNT","RATE_DAILY","PERIOD"]
[314593081,1708438254227,-500.0,0.00047123,6]
[314593082,1708438254237,-500.0,0.00047123,6]
[314593083,1708438254246,-1000.0,0.00047123,7]
[314593084,1708438254256,-500.0,0.00047123,6]
[314593085,1708438254265,-500.0,0.00047123,6]
[314593086,1708438254274,-500.0,0.00047123,6]
[314593087,1708438254284,-500.0,0.00047123,6]
[314593088,1708438254293,-500.0,0.00047123,6]
[314593089,1708438254303,-500.0,0.00047123,6]
[314593090,1708438254313,-500.0,0.00047123,6]
[314593091,1708438254323,-500.0,0.00047123,6]
[314593092,1708438254332,-500.0,0.00047123,6]
[314593093,1708438254342,-500.0,0.00047123,6]
[314593094,1708438254351,-500.0,0.00047123,6]
[314593095,1708438254360,-500.0,0.00047123,6]
[314593096,1708438254370,-500.0,0.00047123,6]
[314593097,1708438254379,-500.0,0.00047123,6]
[314593098,1708438254388,-500.0,0.00047123,6]
[314593099,1708438254398,-500.0,0.00047123,6]
[314593100,1708438254407,-500.0,0.00047123,6]
[314593101,1708438254417,-500.0,0.00047123,6]
[314593102,1708438254428,-310.49713898,0.00047123,6]
[314593103,1708438254437,-500.0,0.00047123,6]
[314593104,1708438254447,-848.07,0.00047123,6]
[314593105,1708438254457,-150.0,0.00047123,6]
[314593106,1708438254466,-500.0,0.00047123,6]
[314593107,1708438254475,-558.07570171,0.00047123,6]
[314593108,1708438254484,-682.3,0.00047123,6]
[314593109,1708438254494,-560.10723599,0.00047123,6]
[314593110,1708438254503,-500.0,0.00047123,6]
[314593111,1708438254512,-512.59005959,0.00047123,6]
[314593112,1708438254522,-555.69911253,0.00047123,6]
[314593113,1708438254531,-500.0,0.00047123,6]
[314593114,1708438254540,-1000.0,0.00047123,36]
[314593115,1708438254549,-500.0,0.00047123,6]
[314593116,1708438254558,-500.0,0.00047123,6]
[314593117,1708438254568,-500.0,0.00047123,6]
[314593118,1708438254578,-500.0,0.00047123,6]
[314593119,1708438254587,-500.0,0.00047123,6]
[314593120,1708438254597,-500.0,0.00047123,6]
[314593121,1708438254609,-242.39,0.00047123,6]
[314593122,1708438254619,-500.0,0.00047123,6]
[314593123,1708438254628,-500.0,0.00047123,6]
[314593124,1708438254637,-500.0,0.00047123,6]
[314593125,1708438254646,-500.0,0.00047123,6]
[314593126,1708438254655,-210.64953305,0.00047123,6]
[314593127,1708438254664,-500.0,0.00047123,6]
[314593128,1708438254674,-500.0,0.00047123,6]
[314593129,1708438254684,-500.0,0.00047123,6]
[314593130,1708438254694,-500.0,0.00047123,6]
[314593131,1708438254704,-519.69891865,0.00047123,6]
[314593132,1708438254713,-840.12,0.00047123,6]
[314593133,1708438254723,-500.0,0.00047123,6]
[314593134,1708438254732,-500.98,0.00047123,6]
[314593135,1708438254741,-500.0,0.00047123,6]
[314593136,1708438254750,-500.0,0.00047123,6]
[314593137,1708438254759,-714.41,0.00047123,6]
[314593138,1708438254770,-500.0,0.00047123,6]
[314593139,1708438254779,-372.45780145,0.00047123,6]
[314593140,1708438254789,-658.36,0.00047123,6]
[314593141,1708438254798,-500.0,0.00047123,6]
[314593142,1708438254807,-500.0,0.00047123,6]
[314593143,1708438254816,-500.0,0.00047123,6]
[314593144,1708438254826,-500.0,0.00047123,6]
[314593145,1708438254835,-612.7,0.00047123,6]
[314593146,1708438254845,-500.0,0.00047123,6]
[314593147,1708438254854,-500.0,0.00047123,6]
[314593148,1708438254863,-500.0,0.00047123,6]
[314593149,1708438254872,-500.0,0.00047123,6]
[314593150,1708438254881,-500.0,0.00047123,6]
[314593151,1708438254891,-500.0,0.00047123,6]
[314593152,1708438254901,-264.86,0.00047123,6]
[314593153,1708438254910,-500.0,0.00047123,6]
[314593154,1708438254919,-500.0,0.00047123,6]
[314593155,1708438254931,-500.0,0.00047123,6]
[314593156,1708438254940,-500.0,0.00047123,6]
[314593157,1708438254949,-500.0,0.00047123,6]
[314593158,1708438254959,-500.0,0.00047123,6]
[314593159,1708438254968,-500.0,0.00047123,6]
[314593160,1708438254977,-630.88,0.00047123,6]
[314593161,1708438254987,-500.0,0.00047123,6]
[314593162,1708438254996,-500.0,0.00047123,6]
[314593163,1708438255006,-500.0,0.00047123,6]
[314593164,1708438255015,-500.0,0.00047123,6]
[314593165,1708438255025,-500.0,0.00047123,6]
[314593166,1708438255034,-1213.81,0.00047123,6]
[314593167,1708438255043,-1095.04,0.00047123,6]
[314593168,1708438255053,-500.0,0.00047123,6]
[314593169,1708438255062,-500.0,0.00047123,6]
[314593170,1708438255071,-2412.35,0.00047123,6]
[314593171,1708438255080,-500.0,0.00047123,6]
[314593172,1708438255089,-513.64,0.00047123,6]
[314593173,1708438255098,-500.0,0.00047123,6]
[314593174,1708438255108,-500.0,0.00047123,6]
[314593175,1708438255117,-500.0,0.00047123,6]
[314593176,1708438255126,-450.24619988,0.00047123,6]
[314593177,1708438255135,-3945.56,0.00047123,6]
[314593178,1708438255145,-500.0,0.00047123,6]
[314593179,1708438255154,-500.0,0.00047123,6]
[314593180,1708438255163,-500.0,0.00047123,6]
[314593181,1708438255173,-548.82,0.00047123,6]
[314593182,1708438255183,-500.0,0.00047123,6]
[314593183,1708438255192,-1733.94,0.00047123,6]
[314593184,1708438255201,-500.0,0.00047123,6]
[314593185,1708438255211,-500.0,0.00047123,6]
[314593186,1708438255221,-500.0,0.00047123,6]
[314593187,1708438255230,-500.0,0.00047123,6]
[314593188,1708438255240,-500.0,0.00047123,6]
[314593189,1708438255249,-226.66264469,0.00047123,6]
[314593190,1708438255259,-500.0,0.00047123,6]
[314593191,1708438255268,-603.44,0.00047123,6]
[314593192,1708438255278,-500.0,0.00047123,6]
[314593193,1708438255287,-577.62913496,0.00047123,6]
[314593194,1708438255296,-890.14,0.00047123,6]
[314593195,1708438255306,-500.0,0.00047123,6]
[314593196,1708438255316,-4607.04,0.00047123,6]
[314593197,1708438255326,-515.34,0.00047123,6]
[314593198,1708438255335,-500.0,0.00047123,6]
[314593199,1708438255345,-500.0,0.00047123,6]
[314593200,1708438255355,-500.0,0.00047123,6]
[314593201,1708438255364,-500.0,0.00047123,6]
[314593202,1708438255373,-235.8864987,0.00047123,6]
[314593203,1708438255383,-573.88519628,0.00047123,6]
[314593204,1708438255392,-500.0,0.00047123,6]
[314593205,1708438255402,-500.0,0.00047123,6]
[314593206,1708438255411,-500.0,0.00047123,6]
[314593207,1708438255421,-169.06,0.00047123,6]
[314593208,1708438255434,-500.0,0.00047123,6]
[314593209,1708438255444,-500.0,0.00047123,6]
[314593210,1708438255453,-500.0,0.00047123,6]
[314593211,1708438255462,-500.0,0.00047123,6]
[314593212,1708438255511,-847.45,0.00047123,6]
[314593213,1708438255520,-500.0,0.00047123,6]
[314593214,1708438255530,-500.0,0.00047123,6]
[314593215,1708438255539,-396.29,0.00047123,6]
[314593216,1708438255548,-617.66,0.00047123,6]
[314593217,1708438255558,-720.16,0.00047123,6]
[314593218,1708438255567,-500.0,0.00047123,6]
[314593219,1708438255578,-613.2552488,0.00047123,6]
[314593220,1708438255590,-500.0,0.00047123,6]
[314593221,1708438255599,-500.0,0.00047123,6]
[314593222,1708438255610,-282.799394,0.00047123,14]
[314593223,1708438255620,-207.0,0.00047249,18]
[314593224,1708438255629,-6851.0,0.0004725,120]
[314593225,1708438255639,-300.0,0.0004726,2]
[314593226,1708438255648,-250.0,0.00047274,2]
[314593227,1708438255658,-604.0,0.00047286,7]
[314593228,1708438255666,-201.0,0.00047385,28]
[314593229,1708438255676,-500.0,0.00047397,6]
[314593230,1708438255686,-500.0,0.00047397,6]
[314593231,1708438255695,-313.94,0.00047397,6]
[314593232,1708438255704,-500.0,0.00047397,6]
[314593233,1708438255714,-500.0,0.00047397,6]
[314593234,1708438255723,-392.36,0.00047397,6]
[314593235,1708438255732,-500.0,0.00047397,6]
[314593236,1708438255741,-216.46,0.00047397,6]
[314593237,1708438255750,-500.0,0.00047397,6]
[314593238,1708438255759,-500.0,0.00047397,6]
[314593239,1708438255769,-500.0,0.00047397,6]
[314593240,1708438255777,-500.0,0.00047397,6]
[314593241,1708438255786,-500.0,0.00047397,6]
[314593242,1708438255795,-500.0,0.00047397,6]
[314593243,1708438255805,-343.04,0.00047397,6]
[314593244,1708438255814,-520.96,0.00047397,6]
[314593245,1708438255823,-500.0,0.00047397,6]
[314593246,1708438255832,-500.0,0.00047397,6]
[314593247,1708438255841,-500.0,0.00047397,6]
[314593248,1708438255850,-630.36718076,0.00047397,6]
[314593249,1708438255859,-500.0,0.00047397,6]
[314593250,1708438255868,-848.07,0.00047397,6]
[314593251,1708438255878,-500.0,0.00047397,6]
[314593252,1708438255887,-682.3,0.00047397,6]
[314593253,1708438255896,-1000.0,0.00047397,39]
[314593254,1708438255905,-500.0,0.00047397,6]
[314593255,1708438255914,-500.0,0.00047397,6]
[314593256,1708438255924,-500.0,0.00047397,6]
[314593257,1708438255934,-500.0,0.00047397,6]
[314593258,1708438255943,-500.0,0.00047397,6]
[314593259,1708438255952,-500.0,0.00047397,6]
[314593260,1708438255962,-500.0,0.00047397,6]
[314593261,1708438255971,-181.90099062,0.00047397,6]
[314593262,1708438255980,-840.12,0.00047397,6]
[314593263,1708438255990,-500.0,0.00047397,6]
[314593264,1708438255999,-500.98,0.00047397,6]
[314593265,1708438256008,-500.0,0.00047397,6]
[314593266,1708438256017,-500.0,0.00047397,6]
[314593267,1708438256027,-714.41,0.00047397,6]
[314593268,1708438256036,-297.11311491,0.00047397,6]
[314593269,1708438256045,-658.36,0.00047397,6]
[314593270,1708438256054,-500.0,0.00047397,6]
[314593271,1708438256064,-345.30889203,0.00047397,6]
[314593272,1708438256074,-500.0,0.00047397,6]
[314593273,1708438256082,-500.0,0.00047397,6]
[314593274,1708438256091,-500.0,0.00047397,6]
[314593275,1708438256100,-500.0,0.00047397,6]
[314593276,1708438256110,-500.0,0.00047397,6]
[314593277,1708438256119,-500.0,0.00047397,6]
[314593278,1708438256128,-500.0,0.00047397,6]
[314593279,1708438256138,-500.0,0.00047397,6]
[314593280,1708438256148,-500.0,0.00047397,6]
[314593281,1708438256157,-500.0,0.00047397,6]
[314593282,1708438256167,-500.0,0.00047397,6]
[314593283,1708438256178,-500.0,0.00047397,6]
[314593284,1708438256187,-500.0,0.00047397,6]
[314593285,1708438256197,-320.25,0.00047397,6]
[314593286,1708438256206,-500.0,0.00047397,6]
[314593287,1708438256215,-500.0,0.00047397,6]
[314593288,1708438256224,-500.0,0.00047397,6]
[314593289,1708438256233,-500.0,0.00047397,6]
[314593290,1708438256243,-500.0,0.00047397,6]
[314593291,1708438256252,-1213.81,0.00047397,6]
[314593292,1708438256261,-1095.04,0.00047397,6]
[314593293,1708438256270,-500.0,0.00047397,6]
[314593294,1708438256279,-500.0,0.00047397,6]
[314593295,1708438256288,-2412.35,0.00047397,6]
[314593296,1708438256298,-519.46,0.00047397,6]
[314593297,1708438256307,-513.64,0.00047397,6]
[314593298,1708438256318,-500.0,0.00047397,6]
[314593299,1708438256328,-500.0,0.00047397,6]
[314593300,1708438256338,-500.0,0.00047397,6]
[314593301,1708438256347,-3945.56,0.00047397,6]
[314593302,1708438256357,-500.0,0.00047397,6]
[314593303,1708438256366,-500.0,0.00047397,6]
[314593304,1708438256375,-500.0,0.00047397,6]
[314593305,1708438256384,-1733.94,0.00047397,6]
[314593306,1708438256394,-500.0,0.00047397,6]
[314593307,1708438256403,-500.0,0.00047397,6]
[314593308,1708438256412,-500.0,0.00047397,6]
[314593309,1708438256431,-500.0,0.00047397,6]
[314593310,1708438256441,-500.0,0.00047397,6]
[314593311,1708438256450,-281.59,0.00047397,6]
[314593312,1708438256459,-890.14,0.00047397,6]
[314593313,1708438256469,-500.0,0.00047397,6]
[314593314,1708438256478,-4607.04,0.00047397,6]
[314593315,1708438256487,-500.0,0.00047397,6]
[314593316,1708438256496,-500.0,0.00047397,6]
[314593317,1708438256505,-500.0,0.00047397,6]
[314593318,1708438256514,-500.0,0.00047397,6]
[314593319,1708438256523,-500.0,0.00047397,6]
[314593320,1708438256533,-500.0,0.00047397,6]
[314593321,1708438256542,-500.0,0.00047397,6]
[314593322,1708438256551,-500.0,0.00047397,6]
[314593323,1708438256560,-576.79429698,0.00047397,6]
[314593324,1708438256570,-500.0,0.00047397,6]
[314593325,1708438256579,-500.0,0.00047397,6]
[314593326,1708438256588,-847.45,0.00047397,6]
[314593327,1708438256597,-476.73,0.00047397,6]
[314593328,1708438256608,-617.66,0.00047397,6]
[314593329,1708438256617,-720.16,0.00047397,6]
[314593330,1708438256626,-500.0,0.00047397,6]
[314593331,1708438256636,-1874.32,0.00047459,30]
[314593332,1708438256649,-1874.32,0.00047459,30]
[314593333,1708438256659,-1874.32,0.00047459,30]
[314593334,1708438256668,-1874.32,0.00047459,30]
[314593335,1708438256681,-1590.55,0.000475,7]
[314593336,1708438256691,-6890.00165564,0.00047517,2]
[314593337,1708438256701,-1015.01051749,0.00047532,5]
[314593338,1708438256710,-494.50595634,0.00047548,2]
[314593339,1708438256720,-1000.0,0.0004758,30]
[314593340,1708438256728,-1000.0,0.0004758,30]
[314593341,1708438256738,-1000.0,0.0004758,30]
[314593342,1708438256747,-250.0,0.0004758,2]
[314593343,1708438256756,-500.0,0.0004758,4]
[314593344,1708438256765,-750.0,0.0004758,6]
[314593345,1708438256774,-627.19593507,0.0004758,8]
[314593346,1708438256782,-666.0,0.0004758,2]
[314593347,1708438256792,-500.0,0.00047589,6]
[314593348,1708438256801,-1332.35,0.000476,7]
[314593349,1708438256811,-200.31,0.00047671,6]
[314593350,1708438256824,-500.0,0.00047671,6]
[314593351,1708438256834,-500.0,0.00047671,6]
[314593352,1708438256843,-202.66,0.00047671,6]
[314593353,1708438256852,-500.0,0.00047671,6]
[314593354,1708438256862,-500.0,0.00047671,6]
[314593355,1708438256871,-848.07,0.00047671,6]
[314593356,1708438256880,-682.3,0.00047671,6]
[314593357,1708438256889,-1000.0,0.00047671,42]
[314593358,1708438256899,-500.0,0.00047671,6]
[314593359,1708438256909,-500.0,0.00047671,6]
[314593360,1708438256922,-500.0,0.00047671,6]
[314593361,1708438256933,-500.0,0.00047671,6]
[314593362,1708438256942,-500.0,0.00047671,6]
[314593363,1708438256951,-500.0,0.00047671,6]
[314593364,1708438256961,-500.0,0.00047671,6]
[314593365,1708438256970,-840.12,0.00047671,6]
[314593366,1708438256979,-500.0,0.00047671,6]
[314593367,1708438256988,-500.98,0.00047671,6]
[314593368,1708438256998,-500.0,0.00047671,6]
[314593369,1708438257007,-500.0,0.00047671,6]
[314593370,1708438257016,-714.41,0.00047671,6]
[314593371,1708438257025,-658.36,0.00047671,6]
[314593372,1708438257034,-500.0,0.00047671,6]
[314593373,1708438257043,-500.0,0.00047671,6]
[314593374,1708438257052,-500.0,0.00047671,6]
[314593375,1708438257062,-500.0,0.00047671,6]
[314593376,1708438257071,-500.0,0.00047671,6]
[314593377,1708438257081,-500.0,0.00047671,6]
[314593378,1708438257090,-500.0,0.00047671,6]
[314593379,1708438257104,-500.0,0.00047671,6]
[314593380,1708438257114,-500.0,0.00047671,6]
[314593381,1708438257124,-500.0,0.00047671,6]
[314593382,1708438257134,-500.0,0.00047671,6]
[314593383,1708438257144,-500.0,0.00047671,6]
[314593384,1708438257155,-500.0,0.00047671,6]
[314593385,1708438257166,-329.34,0.00047671,6]
[314593386,1708438257176,-500.0,0.00047671,6]
[314593387,1708438257188,-500.0,0.00047671,6]
[314593388,1708438257198,-230.23,0.00047671,6]
[314593389,1708438257208,-500.0,0.00047671,6]
[314593390,1708438257217,-500.0,0.00047671,6]
[314593391,1708438257227,-1213.81,0.00047671,6]
[314593392,1708438257237,-1095.04,0.00047671,6]
[314593393,1708438257247,-500.0,0.00047671,6]
[314593394,1708438257256,-500.0,0.00047671,6]
[314593395,1708438257266,-2412.35,0.00047671,6]
[314593396,1708438257276,-513.64,0.00047671,6]
[314593397,1708438257286,-615.5,0.00047671,6]
[314593398,1708438257296,-500.0,0.00047671,6]
[314593399,1708438257305,-269.11,0.00047671,6]
[314593400,1708438257315,-3945.56,0.00047671,6]
[314593401,1708438257326,-500.0,0.00047671,6]
[314593402,1708438257337,-500.0,0.00047671,6]
[314593403,1708438257346,-500.0,0.00047671,6]
[314593404,1708438257356,-1733.94,0.00047671,6]
[314593405,1708438257366,-500.0,0.00047671,6]
[314593406,1708438257376,-500.0,0.00047671,6]
[314593407,1708438257386,-500.0,0.00047671,6]
[314593408,1708438257396,-500.0,0.00047671,6]
[314593409,1708438257406,-500.0,0.00047671,6]
[314593410,1708438257416,-890.14,0.00047671,6]
[314593411,1708438257427,-500.0,0.00047671,6]
[314593412,1708438257437,-4607.04,0.00047671,6]
[314593413,1708438257447,-329.1,0.00047671,6]
[314593414,1708438257457,-500.0,0.00047671,6]
[314593415,1708438257467,-527.88,0.00047671,6]
[314593416,1708438257477,-538.01148953,0.00047671,6]
[314593417,1708438257487,-465.77,0.00047671,6]
[314593418,1708438257497,-500.0,0.00047671,6]
[314593419,1708438257507,-500.0,0.00047671,6]
[314593420,1708438257517,-608.09314946,0.00047671,6]
[314593421,1708438257526,-500.0,0.00047671,6]
[314593422,1708438257536,-847.45,0.00047671,6]
[314593423,1708438257546,-617.66,0.00047671,6]
[314593424,1708438257557,-720.16,0.00047671,6]
[314593425,1708438257567,-1874.32,0.00047732,30]
[314593426,1708438257578,-1874.32,0.00047732,30]
[314593427,1708438257588,-308.8023185,0.00047779,6]
[314593428,1708438257598,-890.37,0.000478,5]
[314593429,1708438257612,-890.37,0.000478,5]
[314593430,1708438257621,-890.37,0.000478,5]
[314593431,1708438257632,-890.37,0.000478,5]
[314593432,1708438257642,-890.37,0.000478,5]
[314593433,1708438257653,-890.37,0.000478,5]
[314593434,1708438257663,-890.37,0.000478,5]
[314593435,1708438257674,-890.37,0.000478,5]
[314593436,1708438257688,-890.37,0.000478,5]
[314593437,1708438257699,-890.37,0.000478,5]
[314593438,1708438257709,-890.37,0.000478,5]
[314593439,1708438257719,-890.37,0.000478,5]
[314593440,1708438257729,-890.37,0.000478,5]
[314593441,1708438257739,-890.37,0.000478,5]
[314593442,1708438257749,-890.37,0.000478,5]
[314593443,1708438257759,-890.37,0.000478,5]
[314593444,1708438257769,-890.37,0.000478,5]
[314593445,1708438257779,-890.37,0.000478,5]
[314593446,1708438257789,-890.37,0.000478,5]
[314593447,1708438257799,-890.37,0.000478,5]
[314593448,1708438257808,-462.20626296,0.00047831,13]
[314593449,1708438257817,-207.22728549,0.00047831,13]
[314593450,1708438257827,-1633.85312949,0.00047879,2]
[314593451,1708438257837,-300.0,0.00047879,2]
[314593452,1708438257847,-300.0,0.00047879,2]
[314593453,1708438257856,-300.0,0.00047879,2]
[314593454,1708438257866,-300.0,0.00047879,2]
[314593455,1708438257876,-300.0,0.00047879,2]
[314593456,1708438257885,-300.0,0.00047879,2]
[314593457,1708438257896,-300.0,0.00047879,2]
[314593458,1708438257906,-2418.865624,0.0004788,30]
[314593459,1708438257916,-16698.822046,0.0004788,30]
[314593460,1708438257939,-6348.362224,0.0004788,30]
[314593461,1708438257949,-1394.826501,0.0004788,30]
[314593462,1708438257960,-200000.0,0.00047898,14]
[314593463,1708438257970,-91562.38774334,0.00047899,5]
[314593464,1708438257980,-1446.0509259,0.000479,4]
[314593465,1708438257990,-200.0,0.000479,23]
[314593466,1708438257999,-159.879999,0.00047926,30]
[314593467,1708438258009,-600.0,0.00047945,120]
[314593468,1708438258019,-600.0,0.00047945,120]
[314593469,1708438258029,-600.0,0.00047945,120]
[314593470,1708438258039,-600.0,0.00047945,120]
[314593471,1708438258049,-600.0,0.00047945,120]
[314593472,1708438258059,-600.0,0.00047945,120]
[314593473,1708438258069,-600.0,0.00047945,120]
[314593474,1708438258079,-450.0,0.00047945,7]
[314593475,1708438258089,-500.0,0.00047945,6]
[314593476,1708438258099,-848.07,0.00047945,6]
[314593477,1708438258109,-682.3,0.00047945,6]
[314593478,1708438258119,-1000.0,0.00047945,45]
[314593479,1708438258129,-500.0,0.00047945,6]
[314593480,1708438258139,-500.0,0.00047945,6]
[314593481,1708438258149,-500.0,0.00047945,6]
[314593482,1708438258159,-500.0,0.00047945,6]
[314593483,1708438258169,-254.6,0.00047945,6]
[314593484,1708438258181,-500.0,0.00047945,6]
[314593485,1708438258191,-500.0,0.00047945,6]
[314593486,1708438258201,-840.12,0.00047945,6]
[314593487,1708438258211,-500.0,0.00047945,6]
[314593488,1708438258221,-500.98,0.00047945,6]
[314593489,1708438258231,-500.0,0.00047945,6]
[314593490,1708438258241,-500.0,0.00047945,6]
[314593491,1708438258251,-714.41,0.00047945,6]
[314593492,1708438258261,-658.36,0.00047945,6]
[314593493,1708438258271,-500.0,0.00047945,6]
[314593494,1708438258281,-500.0,0.00047945,6]
[314593495,1708438258291,-500.0,0.00047945,6]
[314593496,1708438258301,-500.0,0.00047945,6]
[314593497,1708438258311,-500.0,0.00047945,6]
[314593498,1708438258321,-500.0,0.00047945,6]
[314593499,1708438258332,-500.0,0.00047945,6]
[314593500,1708438258342,-500.0,0.00047945,6]
[314593501,1708438258353,-500.0,0.00047945,6]
[314593502,1708438258363,-500.0,0.00047945,6]
[314593503,1708438258373,-500.0,0.00047945,6]
[314593504,1708438258384,-500.0,0.00047945,6]
[314593505,1708438258397,-500.0,0.00047945,6]
[314593506,1708438258407,-490.76,0.00047945,6]
[314593507,1708438258418,-500.0,0.00047945,6]
[314593508,1708438258430,-500.0,0.00047945,6]
[314593509,1708438258442,-500.0,0.00047945,6]
[314593510,1708438258452,-1213.81,0.00047945,6]
[314593511,1708438258461,-1095.04,0.00047945,6]
[314593512,1708438258471,-500.0,0.00047945,6]
[314593513,1708438258481,-500.0,0.00047945,6]
[314593514,1708438258491,-2412.35,0.00047945,6]
[314593515,1708438258501,-513.64,0.00047945,6]
[314593516,1708438258511,-500.0,0.00047945,6]
[314593517,1708438258521,-3945.56,0.00047945,6]
[314593518,1708438258531,-500.0,0.00047945,6]
[314593519,1708438258541,-500.0,0.00047945,6]
[314593520,1708438258553,-500.0,0.00047945,6]
[314593521,1708438258563,-500.0,0.00047945,6]
[314593522,1708438258573,-543.48065571,0.00047945,6]
[314593523,1708438258584,-1733.94,0.00047945,6]
[314593524,1708438258595,-526.02,0.00047945,6]
[314593525,1708438258605,-500.0,0.00047945,6]
[314593526,1708438258616,-500.0,0.00047945,6]
[314593527,1708438258626,-500.0,0.00047945,6]
[314593528,1708438258640,-500.0,0.00047945,6]
[314593529,1708438258650,-890.14,0.00047945,6]
[314593530,1708438258660,-500.0,0.00047945,6]
[314593531,1708438258670,-4607.04,0.00047945,6]
[314593532,1708438258683,-556.21,0.00047945,6]
[314593533,1708438258694,-607.25,0.00047945,6]
[314593534,1708438258704,-409.19,0.00047945,6]
[314593535,1708438258714,-500.0,0.00047945,6]
[314593536,1708438258724,-847.45,0.00047945,6]
[314593537,1708438258734,-617.66,0.00047945,6]
[314593538,1708438258743,-720.16,0.00047945,6]
[314593539,1708438258754,-282.799394,0.00047945,14]
[314593540,1708438258764,-443544.794141,0.0004795,30]
[314593541,1708438258775,-203.05,0.0004798,120]
[314593542,1708438258785,-200.0,0.00047987,78]
[314593543,1708438258795,-150.5,0.0004799,120]
[314593544,1708438258805,-207.0,0.00047999,21]
[314593545,1708438258814,-600.0,0.00047999,120]
[314593546,1708438258825,-600.0,0.00047999,120]
[314593547,1708438258835,-1000.0,0.00047999,2]
[314593548,1708438258845,-300.0,0.00047999,2]
[314593549,1708438258856,-300.0,0.00047999,2]
[314593550,1708438258866,-150.0,0.00047999,7]
[314593551,1708438258876,-150.0,0.00047999,7]
[314593552,1708438258886,-150.0,0.00047999,7]
[314593553,1708438258895,-150.0,0.00047999,7]
[314593554,1708438258905,-1499117.47740004,0.00048,90]
[314593555,1708438259136,-265501.69125126,0.00048,90]
[314593556,1708438259149,-225850.36481758,0.00048,90]
[314593557,1708438259162,-361.28072426,0.00048,90]
[314593558,1708438259182,-262770.00000007,0.00048,90]
[314593559,1708438259386,-3348.04990006,0.00048,90]
[314593560,1708438259399,-3779.58,0.00048,90]
[314593561,1708438259447,-158.67750721,0.00032778,2]
[314593562,1708438259457,-831.79392663,0.00048,90]
[314593563,1708438259845,-500.0,0.00046575,6]
[314593564,1708438259855,-246.58,0.00046575,6]
[314593565,1708438259865,-500.0,0.00047397,6]
[314593566,1708438259874,-500.0,0.00047671,6]
[314593567,1708438259884,-500.0,0.00047945,6]
[314593568,1708438259893,-50201.49262169,0.00048,90]
[314593569,1708438259961,-438.01493037,0.00045507,15]
[314593570,1708438259975,-5876.62991068,0.00045507,15]
[314593571,1708438259987,-313.8684004,0.00045507,15]
[314593572,1708438260012,-6675.74707971,0.00045507,15]
[314593573,1708438260023,-500.0,0.00046575,6]
[314593574,1708438260032,-500.0,0.00046575,6]
[314593575,1708438260042,-33069.84619048,0.00048,90]
[314593576,1708438260052,-7464.2,0.00048,30]
[314593577,1708438260061,-200.0,0.00048,25]
[314593578,1708438260071,-1737.001711,0.00048,22]
[314593579,1708438260081,-1526.67165904,0.00048,30]
[314593580,1708438260091,-479.90837571,0.00048,30]